bitfinex/quotes_BTCUSD_20241002
["timestamp","ask_amount","ask_price","bid_price","bid_amount"]
[1727833571602,0.39834054,61576.0,61575.0,0.0814]
[1727833572498,0.39734054,61576.0,61575.0,0.0814]
[1727833572719,0.39734054,61576.0,61575.0,0.0824]
[1727833573164,0.39834054,61576.0,61575.0,0.0834]
[1727833573611,0.39734054,61576.0,61575.0,0.0824]
[1727833573830,0.39834054,61576.0,61575.0,0.0824]
[1727833575128,0.39834054,61576.0,61575.0,0.0814]
[1727833575376,0.39834054,61576.0,61575.0,0.0824]
[1727833575377,0.39734054,61576.0,61575.0,0.0824]
[1727833575902,0.39734054,61576.0,61575.0,0.0834]
[1727833575903,0.61288254,61576.0,61575.0,0.0834]
[1727833576441,0.49734054,61576.0,61575.0,0.0824]
[1727833576670,0.49734054,61576.0,61575.0,0.0834]
[1727833576671,0.50334054,61576.0,61575.0,0.0834]
[1727833576903,0.42284054,61576.0,61575.0,0.0834]
[1727833579054,0.44830197,61576.0,61575.0,0.0834]
[1727833579802,0.04359544,61576.0,61575.0,0.48325173]
[1727833580242,0.03228143,61576.0,61575.0,0.48325173]
[1727833581354,0.03228143,61576.0,61575.0,0.48225173]
[1727833582220,0.03428143,61576.0,61575.0,0.48225173]
[1727833582443,0.02628143,61576.0,61575.0,0.48125173]
[1727833582659,0.03128143,61576.0,61575.0,0.48225173]
[1727833583108,0.02628143,61576.0,61575.0,0.48125173]
[1727833583592,0.02628143,61576.0,61575.0,0.48225173]
[1727833584445,0.00082,61576.0,61575.0,0.48225173]
[1727833584665,0.00082,61576.0,61575.0,0.48125173]
[1727833585112,0.00182,61576.0,61575.0,0.50025173]
[1727833585543,0.00182,61576.0,61575.0,0.49025173]
[1727833585725,0.00082,61576.0,61575.0,0.49225173]
[1727833586187,0.00182,61576.0,61575.0,0.50225173]
[1727833586641,0.00182,61576.0,61575.0,0.49125173]
[1727833587736,0.00182,61576.0,61575.0,0.48125173]
[1727833587737,0.00082,61576.0,61575.0,0.48125173]
[1727833587958,0.00082,61576.0,61575.0,0.49325173]
[1727833588166,0.00182,61576.0,61575.0,0.50425173]
[1727833591499,0.00182,61576.0,61575.0,0.48125173]
[1727833591719,0.00182,61576.0,61575.0,0.311222]
[1727833591927,0.00182,61576.0,61575.0,0.234322]
[1727833593486,0.00182,61576.0,61575.0,0.1044]
[1727833593717,0.01311592,61576.0,61575.0,0.234322]
[1727833593951,0.00182,61576.0,61575.0,0.234322]
[1727833594201,0.01311592,61576.0,61575.0,0.222322]
[1727833594459,0.00182,61576.0,61575.0,0.222322]
[1727833594717,0.01326124,61576.0,61575.0,0.224322]
[1727833594963,0.00182,61576.0,61575.0,0.224322]
[1727833595241,0.01324402,61576.0,61575.0,0.222322]
[1727833595477,0.00082,61576.0,61575.0,0.212322]
[1727833595709,0.00082,61576.0,61575.0,0.213322]
[1727833595976,0.01224402,61576.0,61575.0,0.213322]
[1727833596216,0.00082,61576.0,61575.0,0.208322]
[1727833596486,0.01224402,61576.0,61575.0,0.208322]
[1727833596747,0.01072736,61576.0,61575.0,0.208322]
[1727833597210,0.15618977,61579.0,61575.0,0.37835173]
[1727833597715,0.01072736,61576.0,61575.0,0.37835173]
[1727833597965,0.01072736,61578.0,61576.0,0.12992]
[1727833598213,0.01072736,61578.0,61575.0,0.24842973]
[1727833598214,0.129919,61577.0,61575.0,0.0774]
[1727833598446,0.01072736,61577.0,61575.0,0.0764]
[1727833598900,0.129919,61577.0,61575.0,0.0764]
[1727833599127,0.01072714,61576.0,61575.0,0.0764]
[1727833599858,0.14064714,61576.0,61575.0,0.0764]
[1727833600076,0.01072714,61576.0,61575.0,0.0764]
[1727833600515,0.14064714,61576.0,61575.0,0.0764]
[1727833601041,0.14064714,61576.0,61575.0,0.0774]
[1727833602507,0.01072714,61576.0,61575.0,0.0774]
[1727833602739,0.01072714,61576.0,61575.0,0.207322]
[1727833602958,0.000819,61579.0,61575.0,0.0774]
[1727833603205,0.0186245,61576.0,61575.0,0.208322]
[1727833603467,0.000819,61579.0,61575.0,0.0764]
[1727833603707,0.000819,61579.0,61576.0,0.0777]
[1727833604151,0.000819,61579.0,61576.0,0.20762]
[1727833604674,0.000819,61579.0,61578.0,0.17002973]
[1727833604914,0.130733,61579.0,61576.0,0.0777]
[1727833605195,0.130733,61579.0,61578.0,0.90821459]
[1727833605196,0.000819,61579.0,61578.0,0.90821459]
[1727833605453,0.005819,61579.0,61578.0,0.66404018]
[1727833605700,0.002819,61579.0,61578.0,0.66404018]
[1727833605981,0.005819,61579.0,61578.0,0.66404018]
[1727833606462,0.006819,61579.0,61578.0,0.67804018]
[1727833606700,0.000819,61579.0,61578.0,0.66404018]
[1727833606968,0.002819,61579.0,61578.0,0.49934573]
[1727833607445,0.000819,61579.0,61578.0,0.49934573]
[1727833607678,0.000819,61579.0,61578.0,0.50934573]
[1727833608166,0.000819,61579.0,61578.0,0.50134573]
[1727833608394,0.000819,61579.0,61578.0,0.40294573]
[1727833608634,0.000819,61579.0,61578.0,0.40694573]
[1727833608858,0.000819,61579.0,61578.0,0.38894573]
[1727833615219,0.000819,61579.0,61578.0,0.31094573]
[1727833616351,0.02627346,61579.0,61578.0,0.31094573]
[1727833618579,0.02627346,61579.0,61578.0,0.31419329]
[1727833619008,0.02627346,61579.0,61578.0,0.57664018]
[1727833620101,0.02627346,61579.0,61578.0,0.41194573]
[1727833622016,0.000819,61579.0,61578.0,0.41194573]
[1727833624019,0.000819,61579.0,61578.0,0.67703146]
[1727833624234,0.0075697,61580.0,61579.0,0.230914]
[1727833624462,0.0075697,61580.0,61579.0,0.75161673]
[1727833624684,0.0075697,61580.0,61579.0,0.74837224]
[1727833624890,0.0075697,61580.0,61579.0,0.65231851]
[1727833625528,0.0075697,61580.0,61579.0,0.77639301]
[1727833625778,0.0075697,61580.0,61579.0,0.78139301]
[1727833625999,0.0075697,61580.0,61579.0,0.78338429]
[1727833626235,0.0075697,61580.0,61579.0,0.66330979]
[1727833626447,0.0075697,61580.0,61579.0,0.75937648]
[1727833626668,0.0075697,61580.0,61579.0,0.59269075]
[1727833626888,0.0075697,61580.0,61579.0,0.45798498]
[1727833627154,0.0075697,61580.0,61579.0,0.40994373]
[1727833630461,0.0083877,61580.0,61579.0,0.40994373]
[1727833632519,0.0083877,61580.0,61579.0,0.38694373]
[1727833633171,0.0083877,61580.0,61579.0,0.138914]
[1727833633914,0.0083877,61580.0,61579.0,0.009]
[1727833634121,0.01933376,61580.0,61579.0,0.009]
[1727833634562,0.01933376,61580.0,61579.0,0.134914]
[1727833634780,0.01933376,61580.0,61579.0,0.005]
[1727833635007,0.14924676,61580.0,61576.0,0.131556]
[1727833635229,0.14924676,61580.0,61576.0,0.001636]
[1727833635230,0.01933376,61580.0,61576.0,0.001636]
[1727833635437,0.14924576,61580.0,61579.0,0.001]
[1727833635869,0.01933376,61580.0,61576.0,0.001636]
[1727833636085,0.01933376,61580.0,61579.0,0.001]
[1727833636297,0.1747022,61580.0,61579.0,0.001]
[1727833636742,0.129918,61577.0,61576.0,0.001636]
[1727833637232,0.14073405,61577.0,61576.0,0.001636]
[1727833638741,0.14673405,61577.0,61576.0,0.002636]
[1727833638946,0.15173405,61577.0,61576.0,0.002636]
[1727833639594,0.41762801,61577.0,61576.0,0.002636]
[1727833640016,0.33078871,61577.0,61576.0,0.002636]
[1727833642793,0.41178871,61577.0,61576.0,0.002636]
[1727833643918,0.40678871,61577.0,61576.0,0.002636]
[1727833644362,0.41078871,61577.0,61576.0,0.002636]
[1727833644545,0.42478871,61577.0,61576.0,0.003636]
[1727833644785,0.40078871,61577.0,61576.0,0.001636]
[1727833645226,0.40078871,61577.0,61576.0,0.003636]
[1727833645227,0.42478871,61577.0,61576.0,0.003636]
[1727833646274,0.45024729,61577.0,61576.0,0.003636]
[1727833648508,0.54835849,61577.0,61576.0,0.003636]
[1727833648759,0.65035849,61577.0,61576.0,0.003636]
[1727833650631,0.81850549,61577.0,61576.0,0.003636]
[1727833650843,0.40772,61576.0,61575.0,0.0764]
[1727833651055,1.09966711,61576.0,61575.0,0.0764]
[1727833651281,0.66747711,61576.0,61575.0,0.0764]
[1727833651533,0.89029311,61576.0,61575.0,0.0764]
[1727833652035,0.229931,61571.0,61570.0,0.001636]
[1727833652277,0.82545876,61571.0,61570.0,0.001636]
[1727833652504,0.83591347,61571.0,61570.0,0.001636]
[1727833653481,0.84991347,61571.0,61570.0,0.001636]
[1727833653739,0.68503165,61571.0,61570.0,0.001636]
[1727833653988,0.51500192,61571.0,61570.0,0.001636]
[1727833654466,0.52900192,61571.0,61570.0,0.001636]
[1727833657289,0.53100192,61571.0,61570.0,0.001636]
[1727833657961,0.52900192,61571.0,61570.0,0.001636]
[1727833660373,0.69388374,61571.0,61570.0,0.001636]
[1727833661867,0.52900192,61571.0,61570.0,0.001636]
[1727833665018,0.53100192,61571.0,61570.0,0.001636]
[1727833665433,0.51700192,61571.0,61570.0,0.001636]
[1727833665763,0.53100192,61571.0,61570.0,0.001636]
[1727833666183,0.51700192,61571.0,61570.0,0.001636]
[1727833666527,0.69588374,61571.0,61570.0,0.001636]
[1727833666730,0.68188374,61571.0,61570.0,0.001636]
[1727833667624,0.69388374,61571.0,61570.0,0.001636]
[1727833667837,0.35120192,61571.0,61570.0,0.001636]
[1727833669098,0.33720192,61571.0,61570.0,0.001636]
[1727833669302,0.34720192,61571.0,61570.0,0.001636]
[1727833669719,0.33320192,61571.0,61570.0,0.001636]
[1727833670074,0.34520192,61571.0,61570.0,0.001636]
[1727833671369,0.33320192,61571.0,61570.0,0.001636]
[1727833671729,0.33920192,61571.0,61570.0,0.001636]
[1727833671932,0.32920192,61571.0,61570.0,0.001636]
[1727833672358,0.33920192,61571.0,61570.0,0.002636]
[1727833672841,0.32920192,61571.0,61570.0,0.001636]
[1727833673272,0.33420192,61571.0,61570.0,0.002636]
[1727833673935,0.33420192,61571.0,61570.0,0.078936]
[1727833674360,0.44557741,61571.0,61570.0,0.002636]
[1727833679694,0.33420192,61571.0,61570.0,0.002636]
[1727833684069,0.32820192,61571.0,61570.0,0.002636]
[1727833684297,0.33120192,61571.0,61570.0,0.001636]
[1727833684736,0.33020192,61571.0,61570.0,0.001636]
[1727833684952,0.36166451,61571.0,61570.0,0.001636]
[1727833685163,0.35466451,61571.0,61570.0,0.001636]
[1727833685374,0.35866451,61571.0,61570.0,0.001636]
[1727833686045,0.33320192,61571.0,61570.0,0.001636]
[1727833688188,0.32989876,61571.0,61570.0,0.001636]
[1727833690483,0.09996776,61571.0,61570.0,0.001636]
[1727833690704,0.33676011,61571.0,61570.0,0.001636]
[1727833691579,0.20682911,61571.0,61570.0,0.131569]
[1727833691789,0.20682911,61571.0,61570.0,0.170236]
[1727833693324,0.1240129,61571.0,61570.0,0.54434341]
[1727833693536,0.1240129,61571.0,61570.0,0.300169]
[1727833693787,0.11686135,61571.0,61570.0,0.300169]
[1727833694475,0.10686135,61571.0,61570.0,0.300169]
[1727833694691,0.11286135,61571.0,61570.0,0.300169]
[1727833694938,0.11786135,61571.0,61570.0,0.300169]
[1727833695158,0.11786135,61571.0,61570.0,0.30341699]
[1727833695579,0.11186135,61571.0,61570.0,0.47331224]
[1727833695803,0.11186135,61571.0,61570.0,0.47006425]
[1727833696017,0.10686135,61571.0,61570.0,0.47006425]
[1727833696468,0.0814,61571.0,61570.0,0.47006425]
[1727833696698,0.0824,61571.0,61570.0,0.47206425]
[1727833696905,0.0834,61571.0,61570.0,0.47406425]
[1727833699776,0.10885785,61571.0,61570.0,0.47406425]
[1727833701300,0.00885785,61571.0,61570.0,0.6617587]
[1727833701512,0.000819,61575.0,61570.0,0.3632257]
[1727833701723,0.000819,61575.0,61574.0,0.48931925]
[1727833703724,0.000819,61575.0,61574.0,0.49131925]
[1727833704475,0.000819,61575.0,61574.0,0.49431925]
[1727833704934,0.02627505,61575.0,61574.0,0.49431925]
[1727833706504,0.02627505,61575.0,61574.0,0.49956222]
[1727833706714,0.02627505,61575.0,61574.0,0.5015535]
[1727833707615,0.02627505,61575.0,61574.0,0.49956222]
[1727833712067,0.000819,61575.0,61574.0,0.49956222]
[1727833712952,0.000819,61575.0,61574.0,0.301424]
[1727833715017,0.000819,61575.0,61574.0,0.47131925]
[1727833716255,0.000819,61575.0,61574.0,0.1849]
[1727833716498,0.000819,61575.0,61574.0,0.005]
[1727833716499,0.31771916,61575.0,61574.0,0.005]
[1727833716762,0.21335939,61575.0,61574.0,0.005]
[1727833717256,0.21335939,61575.0,61574.0,0.002]
[1727833717474,0.129931,61571.0,61570.0,0.001636]
[1727833717918,0.129926,61574.0,61570.0,0.001636]
[1727833718153,0.003819,61575.0,61570.0,0.001636]
[1727833718154,0.129928,61573.0,61570.0,0.001636]
[1727833718671,0.133742,61575.0,61571.0,0.0802]
[1727833718904,0.003819,61575.0,61571.0,0.0802]
[1727833719116,0.02545963,61573.0,61571.0,0.0802]
[1727833719343,0.15538663,61573.0,61571.0,0.0802]
[1727833720473,0.15538763,61573.0,61571.0,0.0802]
[1727833720682,0.15538763,61573.0,61571.0,0.0812]
[1727833720917,0.55635152,61572.0,61571.0,0.001]
[1727833721141,0.47536263,61572.0,61571.0,0.001]
[1727833721362,0.47736263,61572.0,61571.0,0.001]
[1727833722220,0.47536263,61572.0,61571.0,0.001]
[1727833722667,0.229931,61571.0,61570.0,0.001636]
[1727833722892,0.45720217,61571.0,61570.0,0.001636]
[1727833724232,0.47120217,61571.0,61570.0,0.001636]
[1727833724696,0.32707693,61571.0,61570.0,0.001636]
[1727833726674,0.34107693,61571.0,61570.0,0.001636]
[1727833727747,0.34307693,61571.0,61570.0,0.001636]
[1727833728617,0.34107693,61571.0,61570.0,0.001636]
[1727833730276,0.34107693,61571.0,61570.0,0.17153125]
[1727833730498,0.257931,61571.0,61570.0,0.001636]
[1727833730714,0.157931,61571.0,61570.0,0.001636]
[1727833730928,0.143931,61571.0,61570.0,0.001636]
[1727833731407,0.148931,61571.0,61570.0,0.001636]
[1727833731870,0.134931,61571.0,61570.0,0.001636]
[1727833732319,0.138931,61571.0,61570.0,0.001636]
[1727833732543,0.133931,61571.0,61570.0,0.001636]
[1727833733501,0.22007693,61571.0,61570.0,0.001636]
[1727833735275,0.24553804,61571.0,61570.0,0.001636]
[1727833736392,0.11560704,61571.0,61570.0,0.001636]
[1727833736613,0.03246111,61571.0,61570.0,0.210469]
[1727833736833,0.03246111,61571.0,61570.0,0.080536]
[1727833737251,0.15939211,61571.0,61570.0,0.080536]
[1727833737676,0.16039211,61571.0,61570.0,0.080536]
[1727833738169,0.15639211,61571.0,61570.0,0.080536]
[1727833738588,0.15639211,61571.0,61570.0,0.081536]
[1727833738804,0.15539211,61571.0,61570.0,0.081536]
[1727833739272,0.15539211,61571.0,61570.0,0.082536]
[1727833741273,0.15539211,61571.0,61570.0,0.003636]
[1727833741483,0.129931,61571.0,61570.0,0.003636]
[1727833742164,0.129931,61571.0,61570.0,0.002636]
[1727833742377,0.129931,61571.0,61570.0,0.001636]
[1727833742877,0.130931,61571.0,61570.0,0.001636]
[1727833743346,0.21407693,61571.0,61570.0,0.001636]
[1727833743778,0.31352102,61571.0,61570.0,0.001636]
[1727833744001,0.41352102,61571.0,61570.0,0.001636]
[1727833744737,0.31407693,61571.0,61570.0,0.001636]
[1727833744951,0.50843473,61571.0,61570.0,0.001636]
[1727833745408,0.62593473,61571.0,61570.0,0.001636]
[1727833747415,0.45603948,61571.0,61570.0,0.001636]
[1727833747680,0.35953948,61571.0,61570.0,0.001636]
[1727833748987,0.36035848,61571.0,61570.0,0.001636]
[1727833751870,0.33489593,61571.0,61570.0,0.001636]
[1727833753360,0.021819,61571.0,61570.0,0.38056425]
[1727833753983,0.021819,61571.0,61570.0,0.210669]
[1727833754197,0.021819,61571.0,61570.0,0.080736]
[1727833754700,0.010819,61571.0,61570.0,0.080736]
[1727833755116,0.000819,61571.0,61570.0,0.212669]
[1727833755382,0.000819,61571.0,61570.0,0.38456425]
[1727833756112,0.000819,61571.0,61570.0,0.214669]
[1727833756795,0.000819,61571.0,61570.0,0.38456425]
[1727833758774,0.02627877,61571.0,61570.0,0.38456425]
[1727833760670,0.02627877,61571.0,61570.0,0.47886425]
[1727833765324,0.02627877,61571.0,61570.0,0.50186425]
[1727833765562,0.02627877,61571.0,61570.0,0.6665587]
[1727833765772,0.000819,61571.0,61570.0,0.6665587]
[1727833765985,0.000819,61571.0,61570.0,0.66854998]
[1727833767712,0.000819,61571.0,61570.0,0.66654998]
[1727833767920,0.001819,61571.0,61570.0,0.67254998]
[1727833768391,0.001819,61571.0,61570.0,0.67054998]
[1727833768822,0.002819,61571.0,61570.0,0.67554998]
[1727833775103,0.002819,61571.0,61570.0,0.50886425]
[1727833775383,0.002819,61571.0,61570.0,0.48586425]
[1727833780032,0.02827707,61571.0,61570.0,0.48586425]
[1727833787690,0.02827707,61571.0,61570.0,0.42746655]
[1727833789472,0.002819,61571.0,61570.0,0.42746655]
[1727833793677,0.0282771,61571.0,61570.0,0.42746655]
[1727833794321,0.0247771,61571.0,61570.0,0.42746655]
[1727833795226,0.0255961,61571.0,61570.0,0.42746655]
[1727833797011,0.0255961,61571.0,61570.0,0.45046655]
[1727833798102,0.0255961,61571.0,61570.0,0.615161]
[1727833798553,0.000819,61571.0,61570.0,0.615161]
[1727833798764,0.000819,61571.0,61570.0,0.66336541]
[1727833799721,0.000819,61571.0,61570.0,0.97189146]
[1727833800223,0.000819,61571.0,61570.0,0.87548264]
[1727833800466,0.000818,61579.0,61570.0,0.87548264]
[1727833800467,0.092619,61597.0,61578.0,0.00699128]
[1727833800776,0.092619,61597.0,61583.0,0.185535]
[1727833800777,0.24417441,61584.0,61583.0,0.185535]
[1727833801035,0.000819,61597.0,61586.0,0.129899]
[1727833801559,0.000819,61597.0,61586.0,0.20235172]
[1727833801822,0.000819,61597.0,61586.0,0.28970393]
[1727833802364,0.000819,61597.0,61586.0,0.129899]
[1727833802365,0.0918,61593.0,61586.0,0.129899]
[1727833802600,0.0918,61593.0,61582.0,0.259816]
[1727833802601,0.171819,61587.0,61580.0,0.25982]
[1727833802825,0.301716,61587.0,61581.0,0.129908]
[1727833803057,0.001,61580.0,61579.0,0.129914]
[1727833803581,0.21133067,61586.0,61581.0,0.129909]
[1727833804324,0.129908,61582.0,61577.0,0.11149755]
[1727833804564,0.129915,61579.0,61573.0,0.259852]
[1727833804801,0.0918,61581.0,61579.0,0.006]
[1727833805043,0.129912,61580.0,61579.0,0.006]
[1727833805267,0.21180514,61580.0,61579.0,0.006]
[1727833805994,0.129915,61579.0,61574.0,0.129924]
[1727833806234,0.129915,61579.0,61577.0,0.005]
[1727833806235,0.468949,61578.0,61577.0,0.005]
[1727833806478,0.0792,61578.0,61577.0,0.005]
[1727833806702,0.0792,61578.0,61575.0,0.129921]
[1727833806941,0.08235466,61579.0,61578.0,0.129916]
[1727833807437,0.08235466,61579.0,61577.0,0.129917]
[1727833807675,0.08235466,61579.0,61574.0,0.259846]
[1727833807912,0.003,61578.0,61577.0,0.129918]
[1727833808161,0.001,61578.0,61577.0,0.129918]
[1727833809174,0.08535466,61579.0,61577.0,0.129918]
[1727833809410,0.08635466,61579.0,61577.0,0.129918]
[1727833809656,0.08335466,61579.0,61577.0,0.129918]
[1727833809902,0.08235466,61579.0,61577.0,0.129918]
[1727833810156,0.001,61578.0,61577.0,0.129918]
[1727833810397,0.08235466,61579.0,61577.0,0.129918]
[1727833810642,0.08435466,61579.0,61577.0,0.129918]
[1727833810881,0.08535466,61579.0,61577.0,0.129918]
[1727833811533,0.08535466,61579.0,61578.0,0.129916]
[1727833812180,0.08535466,61579.0,61577.0,0.129918]
[1727833812399,0.08435466,61579.0,61577.0,0.129918]
[1727833812615,0.08535466,61579.0,61577.0,0.129918]
[1727833813273,0.08235466,61579.0,61577.0,0.129918]
[1727833813719,0.08435466,61579.0,61577.0,0.129918]
[1727833813930,0.08235466,61579.0,61577.0,0.129918]
[1727833814142,0.08335466,61579.0,61577.0,0.129918]
[1727833815690,0.08335466,61579.0,61578.0,0.129916]
[1727833816135,0.001,61579.0,61578.0,0.129916]
[1727833816357,0.001,61579.0,61578.0,0.228016]
[1727833816777,0.001,61579.0,61578.0,0.129916]
[1727833816993,0.000819,61580.0,61579.0,0.129914]
[1727833819743,0.000819,61580.0,61579.0,0.132914]
[1727833819963,0.000819,61580.0,61579.0,0.134914]
[1727833825689,0.000819,61580.0,61579.0,0.24639469]
[1727833830321,0.000819,61580.0,61579.0,0.24439469]
[1727833830553,0.000819,61580.0,61579.0,0.25039469]
[1727833831042,0.000819,61580.0,61579.0,0.24139469]
[1727833831289,0.001819,61580.0,61579.0,0.24839469]
[1727833831540,0.001819,61580.0,61579.0,0.25139469]
[1727833832021,0.001819,61580.0,61579.0,0.24839469]
[1727833832272,0.001819,61580.0,61579.0,0.25539469]
[1727833835694,0.001819,61580.0,61579.0,0.43734237]
[1727833835943,0.001819,61580.0,61579.0,0.43409469]
[1727833836424,0.001819,61580.0,61579.0,0.4825162]
[1727833836673,0.001819,61580.0,61579.0,0.43409469]
[1727833840892,0.000819,61587.0,61586.0,0.129899]
[1727833841127,0.000819,61587.0,61586.0,0.61102114]
[1727833841364,0.000819,61587.0,61586.0,0.96109139]
[1727833841631,0.000819,61587.0,61586.0,0.86633258]
[1727833841893,0.24417441,61598.0,61597.0,0.210276]
[1727833842146,0.24417441,61598.0,61597.0,0.32175669]
[1727833842393,0.01669518,61598.0,61597.0,0.32175669]
[1727833842632,0.14049682,61606.0,61605.0,0.129859]
[1727833842883,0.14049682,61606.0,61605.0,0.24133969]
[1727833843145,0.01669518,61606.0,61605.0,0.24133969]
[1727833843654,0.129851,61609.0,61605.0,0.129859]
[1727833844186,0.01669518,61608.0,61605.0,0.259718]
[1727833844476,0.01669518,61608.0,61607.0,0.129855]
[1727833844686,0.000718,61612.0,61607.0,0.129855]
[1727833844687,0.000718,61612.0,61611.0,0.129846]
[1727833844925,0.000718,61612.0,61611.0,0.29958379]
[1727833845626,0.01754311,61612.0,61611.0,0.29958379]
[1727833845918,0.000718,61612.0,61611.0,0.29958379]
[1727833846145,0.01754311,61612.0,61611.0,0.29958379]
[1727833846383,0.000718,61612.0,61611.0,0.29958379]
[1727833846578,0.01754476,61612.0,61611.0,0.29958379]
[1727833846811,0.000718,61612.0,61611.0,0.29958379]
[1727833847046,0.000718,61612.0,61611.0,0.30058379]
[1727833847474,0.000718,61612.0,61611.0,0.29958379]
[1727833848131,0.000718,61612.0,61611.0,0.30058379]
[1727833848567,0.000718,61612.0,61611.0,0.29958379]
[1727833849030,0.001718,61612.0,61611.0,0.29958379]
[1727833849928,0.000718,61612.0,61611.0,0.29958379]
[1727833854282,0.001537,61612.0,61611.0,0.29958379]
[1727833855384,0.001537,61612.0,61606.0,0.261348]
[1727833855385,0.259694,61611.0,61606.0,0.001638]
[1727833855613,0.129851,61609.0,61606.0,0.001638]
[1727833856311,0.01700312,61608.0,61606.0,0.001638]
[1727833856770,0.129855,61607.0,61606.0,0.001638]
[1727833857460,0.14685812,61607.0,61606.0,0.001638]
[1727833865773,0.22525866,61607.0,61606.0,0.001638]
[1727833866013,0.32415866,61607.0,61606.0,0.001638]
[1727833869990,0.62775489,61607.0,61606.0,0.001638]
[1727833870208,0.72775489,61607.0,61606.0,0.001638]
[1727833870648,0.61727592,61607.0,61606.0,0.001638]
[1727833871086,0.61727592,61607.0,61606.0,0.002638]
[1727833871942,0.60674792,61607.0,61606.0,0.002638]
[1727833872216,0.60674792,61607.0,61606.0,0.003638]
[1727833872881,0.49533066,61607.0,61606.0,0.003638]
[1727833879136,0.49614966,61607.0,61606.0,0.003638]
[1727833880019,0.41444966,61607.0,61606.0,0.003638]
[1727833884409,0.31554966,61607.0,61606.0,0.003638]
[1727833894786,0.31554966,61607.0,61606.0,0.002638]
[1727833895000,0.31954966,61607.0,61606.0,0.003638]
[1727833895433,0.31954966,61607.0,61606.0,0.002638]
[1727833895681,0.32254966,61607.0,61606.0,0.003638]
[1727833896881,0.85584133,61607.0,61606.0,0.003638]
[1727833897143,0.82525356,61607.0,61606.0,0.003638]
[1727833897391,0.8738741,61607.0,61606.0,0.003638]
[1727833897630,0.70899228,61607.0,61606.0,0.003638]
[1727833897874,0.60766692,61607.0,61606.0,0.002638]
[1727833898387,0.61166692,61607.0,61606.0,0.003638]
[1727833898639,0.60466692,61607.0,61606.0,0.001638]
[1727833898873,0.61966692,61607.0,61606.0,0.003638]
[1727833899365,0.73045978,61607.0,61606.0,0.002638]
[1727833899591,0.73745978,61607.0,61606.0,0.002638]
[1727833900090,0.74145978,61607.0,61606.0,0.003638]
[1727833900564,0.61966692,61607.0,61606.0,0.003638]
[1727833901508,0.74149584,61607.0,61606.0,0.003638]
[1727833901759,0.80126692,61607.0,61606.0,0.003638]
[1727833901996,0.96814874,61607.0,61606.0,0.003638]
[1727833902229,1.11413679,61607.0,61606.0,0.003638]
[1727833902480,1.11433677,61607.0,61606.0,0.003638]
[1727833902951,1.11434663,61607.0,61606.0,0.003638]
[1727833904665,0.96814874,61607.0,61606.0,0.003638]
[1727833904899,1.11434663,61607.0,61606.0,0.003638]
[1727833905604,0.96814874,61607.0,61606.0,0.003638]
[1727833906628,0.85673148,61607.0,61606.0,0.003638]
[1727833906874,0.45231537,61607.0,61606.0,0.003638]
[1727833907114,0.42795769,61607.0,61606.0,0.003638]
[1727833907348,0.40360236,61607.0,61606.0,0.003638]
[1727833907627,0.33054966,61607.0,61606.0,0.003638]
[1727833907878,0.23054966,61607.0,61606.0,0.003638]
[1727833908395,0.23054966,61607.0,61606.0,0.33781226]
[1727833908396,0.03282212,61607.0,61606.0,0.33781226]
[1727833908625,0.02335353,61607.0,61606.0,0.41731226]
[1727833908853,0.02335353,61607.0,61606.0,0.41631226]
[1727833908854,0.000819,61607.0,61606.0,0.41631226]
[1727833909083,0.014819,61607.0,61606.0,0.41631226]
[1727833909323,0.014819,61607.0,61606.0,0.41731226]
[1727833909569,0.014819,61607.0,61606.0,0.66148667]
[1727833909809,0.015819,61607.0,61606.0,0.47560158]
[1727833910042,0.014819,61607.0,61606.0,0.47560158]
[1727833910739,0.000819,61607.0,61606.0,0.47460158]
[1727833910984,0.000819,61607.0,61606.0,0.47860158]
[1727833911240,0.001819,61607.0,61606.0,0.47860158]
[1727833911506,0.001819,61607.0,61606.0,0.47460158]
[1727833911763,0.001819,61607.0,61606.0,0.48060158]
[1727833911990,0.002819,61607.0,61606.0,0.310895]
[1727833914795,0.002819,61607.0,61606.0,0.48060158]
[1727833929675,0.002819,61607.0,61606.0,0.42226798]
[1727833934696,0.002819,61607.0,61606.0,0.217995]
[1727833935337,0.002819,61607.0,61606.0,0.137495]
[1727833935338,0.01465437,61607.0,61606.0,0.137495]
[1727833935543,0.01465437,61607.0,61606.0,0.007638]
[1727833935544,0.002819,61607.0,61606.0,0.007638]
[1727833935747,0.01465437,61607.0,61606.0,0.137495]
[1727833935917,0.132674,61607.0,61606.0,0.007638]
[1727833936168,0.22314158,61607.0,61606.0,0.007638]
[1727833936623,0.09328658,61607.0,61606.0,0.007638]
[1727833937472,0.22214158,61607.0,61606.0,0.001638]
[1727833938203,0.22114158,61607.0,61606.0,0.001638]
[1727833938661,0.22214158,61607.0,61606.0,0.001638]
[1727833939325,0.22114158,61607.0,61606.0,0.001638]
[1727833939776,0.09128658,61607.0,61606.0,0.001638]
[1727833940225,0.22114158,61607.0,61606.0,0.002638]
[1727833942731,0.09128658,61607.0,61606.0,0.002638]
[1727833944064,0.01288604,61607.0,61606.0,0.002638]
[1727833944296,0.000819,61607.0,61606.0,0.37796692]
[1727833957560,0.000819,61607.0,61606.0,0.3195633]
[1727833958776,0.000819,61607.0,61606.0,0.4173633]
[1727833964474,0.000819,61607.0,61606.0,0.4163633]
[1727833964693,0.001819,61607.0,61606.0,0.4233633]
[1727833965142,0.002819,61607.0,61606.0,0.4233633]
[1727833967987,0.002819,61607.0,61606.0,0.47165873]
[1727833968269,0.002819,61607.0,61606.0,0.63635318]
[1727833968719,0.002819,61607.0,61606.0,0.58805775]
[1727833968934,0.001819,61607.0,61606.0,0.58105775]
[1727833969387,0.002819,61607.0,61606.0,0.6605009]
[1727833969600,0.002819,61607.0,61606.0,0.91138652]
[1727833969821,0.001819,61607.0,61606.0,0.91138652]
[1727833970041,0.002819,61607.0,61606.0,0.83894337]
[1727833970483,0.001819,61607.0,61606.0,0.83894337]
[1727833970707,0.001537,61612.0,61611.0,0.129846]
[1727833970934,0.001537,61612.0,61611.0,1.00711544]
[1727833971155,0.001537,61612.0,61611.0,0.407746]
[1727833971379,0.001537,61612.0,61611.0,0.59154081]
[1727833971622,0.001537,61612.0,61611.0,0.56738793]